[Event "71st Greek Championship 2022"]
[Site "Athens"]
[Date "2022.12.04"]
[Round "2.5"]
[White "Naoum, Spyridon"]
[Black "Mitsis, Georgios"]
[Result "0-1"]
[ECO "E20"]
[WhiteElo "2352"]
[BlackElo "2365"]
[Annotator "TA"]
[PlyCount "75"]
[EventDate "2022.12.04"]
[EventType "tourn"]
[EventCountry "GRE"]
[SourceTitle "playchess.com"]
[Source "ChessBase"]
[SourceQuality "1"]
[TimeControl "40/5400+30:1800+30"]

{[%evp 13,75,-17,28,35,33,20,69,69,69,56,62,54,66,59,68,64,105,73,79,80,81,80,93,-88,7,0,12,-67,-80,-95,-89,-72,-75,-66,-23,-80,-77,-91,-85,-106,-106,-96,-89,-328,-226,-335,-256,-620,-347,-334,-310,-303,-292,-896,-879,-1189,-1031,-29970,-29969,-6244,-6237,-5477,-2991,-1553]} 1. d4 {[%emt 0:00:09]} Nf6 {[%emt 0:00:33]} 2. c4 {[%emt 0:00:06]} e6 {[%emt 0:00:15]} 3. Nc3 {[%emt 0:00:06]} Bb4 {[%emt 0:00:46]} 4. g3 {[%emt 0:00:26]} O-O {[%emt 0:03:11]} 5. Bg2 {[%emt 0:00:07]} d5 {[%emt 0:05:02]} 6. Nf3 {[%emt 0:00:06]} dxc4 {[%emt 0:03:42]} 7. O-O {[%emt 0:00:07]} c5 {[%emt 0:02:01]} 8. dxc5 {[%emt 0:04:09] E20: Nimzo-Indian: 4 g3 and 4 f3.} Nc6 {[%emt 0:03:40]} 9. Qa4 {[%emt 0:15:42][%cal Of3e5]} Nd7 {[%emt 0:11:42] Inhibits Ne5.} (9... Bd7 $11) 10. Be3 $14 {[%emt 0:17:19] White is slightly better.} Qe7 {[%emt 0:05:01]} 11. Nd4 {[%emt 0:05:00]} Nxd4 {[%emt 0:01:36]} 12. Bxd4 {[%emt 0:01:13]} Bxc5 {[%emt 0:05:46]} 13. Qxc4 {[%emt 0:06:06]} Bxd4 {[%emt 0:01:01]} 14. Qxd4 {[%emt 0:00:02] [#]} Nb6 $146 {[%emt 0:00:38]} ({Predecessor:} 14... Nf6 15. Rfd1 e5 16. Qd6 Qxd6 17. Rxd6 Be6 18. Bxb7 Rab8 19. Bf3 Rxb2 20. Ra6 Rc8 {½-½ (28) Gostisa,L (2420)-Orel,O (2335) Portoroz 1989}) 15. Rac1 {[%emt 0:09:18]} Rd8 {[%emt 0:04:13]} 16. Qe3 {[%emt 0:02:47]} Rb8 {[%emt 0:21:06]} 17. Nb5 {[%emt 0:09:06]} Bd7 {[%emt 0:01:20]} 18. Rc7 $2 {[%emt 0:01:20] [#]} (18. Nxa7 $16 Qb4 19. Rfd1) 18... Qb4 {[%emt 0:01:34]} (18... Na8 $17 19. Rc5 (19. Rxb7 $2 {perishes.} Rxb7 20. Bxb7 Bxb5 $19) 19... b6) 19. Nc3 {[%emt 0:10:44]} Qxb2 {[%emt 0:01:55]} 20. h4 {[%emt 0:03:36]} ({Better is} 20. Bxb7 $11 Qa3 21. Rd1) 20... Rdc8 {[%emt 0:01:57]} 21. Rxc8+ {[%emt 0:00:49]} Rxc8 {[%emt 0:00:10]} ({But not} 21... Bxc8 22. Qe5 Ra8 23. Rd1 $14) 22. Ne4 {[%emt 0:00:00]} Qxa2 {[%emt 0:02:11] Black is more active.} (22... Bc6 {keeps more tension.} 23. Nd6 Rf8 24. Nxb7 Nd5) 23. Nd6 {[%emt 0:01:25][%csl LRb7,LRc8]} Rf8 {[%emt 0:03:13]} 24. Nxb7 {[%emt 0:00:05]} (24. Bxb7 $11 Nd5 25. Qe5) 24... Bb5 $36 {[%emt 0:00:48][%mdl 2048] Black is really pushing.} 25. Bf3 {[%emt 0:00:48]} Nc4 {[%emt 0:04:34]} 26. Qg5 {[%emt 0:04:13]} a6 {[%emt 0:00:26]} (26... Qb2 {simplifies} 27. Qc1 Qb4 28. Qb1 Qxb1 29. Rxb1 a6) 27. Rd1 {[%emt 0:00:12]} h6 {[%emt 0:00:19]} 28. Qe7 {[%emt 0:00:43] Now White is beyond hope.} (28. Qc5 $17 {was worth a try.}) 28... Nd2 {[%emt 0:02:24]} 29. Bh5 {[%emt 0:05:11]} (29. Qc7 {was called for.}) 29... Qd5 {[%emt 0:02:01]} 30. Nd6 $2 {[%emt 0:00:26]} (30. Qd6 Qxh5 31. Rxd2) 30... Qxh5 {[%emt 0:03:04]} 31. Rxd2 {[%emt 0:00:07]} Bxe2 {[%emt 0:00:23] ...Bf3 is the strong threat.} 32. Ne8 {[%emt 0:04:28] [#]} Bb5 $1 {[%emt 0:01:15]} 33. Nc7 {[%emt 0:00:07]} (33. Rd8 Rxe8 34. Rxe8+ Bxe8 35. Qxe8+ Kh7 36. Qd7) 33... Qe5 $19 {[%emt 0:00:42] Strongly threatening ...Qe1+.} 34. Kh2 {[%emt 0:00:51]} Qe1 {[%emt 0:00:44] ( -> ...Bc6)} 35. Rc2 {[%emt 0:00:34] Against Bc6} Bd3 {[%emt 0:00:39]} 36. Qc5 {[%emt 0:00:30]} Bxc2 {[%emt 0:00:10]} 37. Qxc2 {[%emt 0:00:01]} Rc8 {[%emt 0:00:17]} 38. Qc5 {[%emt 0:00:29] Weighted Error Value: White=0.99/Black=0.40} 0-1

[Event "71st Greek Championship 2022"]
[Site "Athens"]
[Date "2022.12.05"]
[Round "3.1"]
[White "Mitsis, Georgios"]
[Black "Skembris, Spyridon"]
[Result "1-0"]
[ECO "D94"]
[WhiteElo "2365"]
[BlackElo "2381"]
[Annotator "TA"]
[PlyCount "99"]
[EventDate "2022.12.04"]
[EventType "tourn"]
[EventCountry "GRE"]
[SourceTitle "playchess.com"]
[Source "ChessBase"]
[SourceQuality "1"]
[TimeControl "40/5400+30:1800+30"]

{[%evp 14,99,36,40,55,69,91,86,118,121,141,141,141,144,266,278,280,227,275,300,291,291,304,311,316,312,294,-64,-64,-66,-72,-68,-51,-82,-64,-82,-37,-49,-48,-59,0,0,0,-132,-18,-32,-22,-30,-37,-34,-28,-102,0,0,0,0,0,0,0,0,0,0,0,0,237,234,227,218,262,256,263,250,232,252,263,261,1835,1859,1467,1443,29995,29996,29996,29997,29997,29998,29998,29999]} 1. d4 {[%emt 0:00:11]} d5 {[%emt 0:00:30]} 2. Nf3 {[%emt 0:00:27]} Nf6 {[%emt 0:00:57]} 3. c4 {[%emt 0:00:22]} c6 {[%emt 0:00:10]} 4. e3 {[%emt 0:00:34]} g6 {[%emt 0:00:12]} 5. Nc3 {[%emt 0:00:59]} Bg7 {[%emt 0:00:09]} 6. Be2 {[%emt 0:01:40]} O-O {[%emt 0:00:14]} 7. O-O {[%emt 0:00:15]} Be6 {[%emt 0:00:18] 7...a6 is a critical line.} 8. b3 {[%emt 0:03:25]} c5 {[%emt 0:14:14] D94: Grünfeld: 4 Nf3 Bg7 5 e3.} 9. dxc5 {[%emt 0:06:59]} Ne4 {[%emt 0:08:32] [#]} 10. Nxe4 {[%emt 0:00:39]} Bxa1 {[%emt 0:00:17] White is better.} (10... dxe4 11. Nd4) 11. Neg5 {[%emt 0:00:16]} (11. cxd5 Bxd5 12. Qc2 Qc7 $15) 11... Bf6 {[%emt 0:01:32]} 12. Nxe6 {[%emt 0:07:23] White is more active.} fxe6 {[%emt 0:00:05]} 13. Nd4 {[%emt 0:01:23]} dxc4 {[%emt 0:15:41]} (13... Bxd4 $16 14. exd4 Rf6) 14. Bxc4 $18 {[%emt 0:01:18] [#]} Kh8 $146 {[%emt 0:01:03]} ({Predecessor:} 14... Nc6 15. Nxe6 Qxd1 16. Nxf8+ {1-0 (16) Pavlovic,D (2407)-Bojkovic,S (2216) Kraljevo 2014}) 15. Qg4 {[%emt 0:09:58]} (15. Nxe6 $6 Qxd1 16. Rxd1 Rc8 $18) (15. Bxe6 Nc6 $14) 15... e5 {[%emt 0:06:33]} 16. Ne6 {[%emt 0:00:12][%csl LRd8,LRf8]} Qc8 {[%emt 0:00:03]} 17. Qe4 {[%emt 0:00:29] Against Nc6} Re8 {[%emt 0:00:17]} 18. g4 {[%emt 0:01:18][%cal Bg2g4,Bg4g5][%mdl 32]} Nd7 {[%emt 0:01:41]} 19. g5 {[%emt 0:10:48]} Nxc5 {[%emt 0:01:04]} 20. Qh4 {[%emt 0:00:00]} (20. Nxc5 $18 Qxc5 21. gxf6 exf6 22. Qxb7) 20... Nxe6 $15 {[%emt 0:02:36]} 21. gxf6 {[%emt 0:00:05]} exf6 {[%emt 0:00:07]} 22. Qxf6+ {[%emt 0:02:07]} Ng7 {[%emt 0:01:33]} 23. Qh4 {[%emt 0:02:43] Inhibits Qg4+.} Qd8 {[%emt 0:16:09]} 24. Qg4 {[%emt 0:00:43]} Qf6 {[%emt 0:05:44]} 25. Bb2 $1 {[%emt 0:03:57]} Qf5 {[%emt 0:04:51]} 26. Qg2 {[%emt 0:02:06]} Re7 {[%emt 0:02:21]} (26... Rad8 $15) 27. f4 $11 {[%emt 0:02:37]} e4 {[%emt 0:01:30]} 28. Bd4 {[%emt 0:04:11]} (28. Rd1 $11) 28... b5 {[%emt 0:00:55]} (28... h6 $17 {Threatens to win with ...Rd8.} 29. Be2 Kh7) 29. Be2 {[%emt 0:00:05] This pair of bishops is nice.} h5 {[%emt 0:00:43]} (29... Kg8 {simplifies} 30. Be5 Rxe5 31. fxe5 Qxe5 32. Qg3 Re8) 30. Rc1 {[%emt 0:00:22]} Kh7 {[%emt 0:02:29]} 31. Rc5 {[%emt 0:00:37]} Qf7 {[%emt 0:00:35] Strongly threatening ...Rd8.} 32. Rxb5 {[%emt 0:06:46]} (32. Bxg7 $11 {remains equal.} Qxg7 33. Bxb5) 32... Rc8 {[%emt 0:00:58]} ({Black should play} 32... Rd8 $1 $17 {...Nf5 is the strong threat.} 33. Bc4 Rxd4 $1 34. exd4 (34. Bxf7 $2 Rd1+ $19) 34... Qxf4) 33. Bc4 $36 {[%emt 0:04:04][%mdl 2048] Black is under pressure.} Rxc4 {[%emt 0:01:46]} 34. bxc4 {[%emt 0:00:08]} Qxc4 {[%emt 0:00:07]} 35. Rb8 {[%emt 0:06:12]} Qc1+ {[%emt 0:03:40]} 36. Qf1 {[%emt 0:00:15]} Qc7 {[%emt 0:00:44]} 37. Qb1 {[%emt 0:01:00]} Qd7 {[%emt 0:00:22]} 38. Qd1 {[%emt 0:02:46]} Qh3 $2 {[%emt 0:03:05]} (38... a5 $11 {and Black stays safe.}) 39. Qb3 $18 {[%emt 0:03:12]} Qg4+ {[%emt 0:00:28] [#]} 40. Kf2 $1 {[%emt 0:00:00] White threatens Qg8+ and mate.} Qf3+ {[%emt 0:00:00]} (40... Re8 41. Rxe8 (41. Bxa7 Qh4+ 42. Kg2 Qg4+ 43. Kf2 Rxb8 $11) 41... Qh4+ 42. Kf1 Qh3+ 43. Ke1 Qh4+ 44. Kd1 Qg4+ 45. Kd2 Qg2+ 46. Kc3) 41. Ke1 {[%emt 0:02:43]} Qh1+ {[%emt 0:01:19]} 42. Kd2 {[%emt 0:00:07]} Qxh2+ {[%emt 0:00:09]} (42... Rc7 $2 43. Qg8+ Kh6 44. Qh8#) 43. Kc3 {[%emt 0:01:01] Intending Qg8+ and mate. Dancing on a razor blade.} Rc7+ {[%emt 0:09:26]} 44. Kb4 {[%emt 0:00:26] Threatening mate with Qg8+.} g5 $2 {[%emt 0:00:16]} (44... Qd2+ 45. Ka4 g5) 45. Qg8+ {[%emt 0:05:54]} (45. fxg5 Qd6+ 46. Ka5 Kg6 $17) 45... Kg6 {[%emt 0:00:53] [#]} 46. Bxg7 $1 {[%emt 0:01:21][%mdl 64] Qe6+ would kill now. Remove Defender} ({Worse is} 46. f5+ Kxf5 47. Qd5+ (47. Bxg7 Qd6+ 48. Ka4 Rxg7 $17) (47. Rb5+ $2 Kg4 $19) 47... Kg4 $11) 46... Rxg7 {[%emt 0:04:12]} 47. Qe6+ {[%emt 0:00:13] White mates.} Kh7 {[%emt 0:01:14]} 48. Qf5+ {[%emt 0:00:30]} Rg6 {[%emt 0:00:30]} 49. Rb7+ {[%emt 0:00:30]} Kh8 {[%emt 0:00:30]} 50. Qf8+ {[%emt 0:00:30] Weighted Error Value: White=0.18 (very precise) /Black=0.34} 1-0

[Event "71st Greek Championship 2022"]
[Site "Athens"]
[Date "2022.12.05"]
[Round "3.2"]
[White "Trimitzios, Petros"]
[Black "Naoum, Spyridon"]
[Result "1-0"]
[ECO "E66"]
[WhiteElo "2358"]
[BlackElo "2352"]
[Annotator "TA"]
[PlyCount "65"]
[EventDate "2022.12.04"]
[EventType "tourn"]
[EventCountry "GRE"]
[SourceTitle "playchess.com"]
[Source "ChessBase"]
[SourceQuality "1"]
[TimeControl "40/5400+30:1800+30"]

{[%evp 24,65,33,33,74,67,65,68,129,138,135,121,154,148,280,277,334,331,413,254,235,219,471,433,437,428,729,719,864,902,912,913,1117,1081,1144,1070,1055,1031,1249,1275,1894,1887,1716,1389]} 1. Nf3 {[%emt 0:00:06]} g6 {[%emt 0:02:26]} 2. g3 {[%emt 0:02:19]} Bg7 {[%emt 0:00:10]} 3. d4 {[%emt 0:00:17]} Nf6 {[%emt 0:00:28]} 4. Bg2 {[%emt 0:00:13]} O-O {[%emt 0:00:06]} 5. O-O {[%emt 0:01:15]} d6 {[%emt 0:00:06]} 6. c4 {[%emt 0:01:54]} Nc6 {[%emt 0:00:18]} 7. Nc3 {[%emt 0:01:12]} a6 {[%emt 0:00:06]} 8. d5 {[%emt 0:05:34]} Na5 {[%emt 0:00:09]} 9. Nd2 {[%emt 0:00:06]} c5 {[%emt 0:00:03]} 10. Qc2 {[%emt 0:01:43]} Rb8 {[%emt 0:00:19]} 11. Rb1 {[%emt 0:00:33]} Bd7 {[%emt 0:04:51]} 12. b3 {[%emt 0:04:47]} b5 {[%emt 0:00:07]} 13. Bb2 {[%emt 0:00:45]} Bh6 {[%emt 0:02:15] E66: King's Indian: Fianchetto: 6...c5 7 0-0 Nc6 8 d5.} 14. f4 {[%emt 0:07:59]} bxc4 {[%emt 0:09:43]} 15. bxc4 {[%emt 0:01:37]} e5 {[%emt 0:29:19]} (15... Qc7 $14) 16. dxe6 $16 {[%emt 0:14:34] [#]} Bxe6 $146 {[%emt 0:03:24]} ({Predecessor:} 16... fxe6 17. Nce4 Ne8 18. Bc3 Rc8 19. Qd3 d5 20. cxd5 c4 21. Qe3 exd5 22. Nc5 Bf5 23. Ne6 Qd7 24. Nxf8 Bxf8 25. Qe5 Rc5 26. Rb8 Kf7 27. Rxe8 {1-0 (27) Neckar,L-Spesny,J Brno 1973}) 17. Nd5 {[%emt 0:00:41]} Rxb2 {[%emt 0:01:35]} 18. Qxb2 {[%emt 0:05:51]} (18. Rxb2 Bg7 $16) 18... Ng4 {[%emt 0:02:25]} (18... Bg7 $16 {was worth a try.} 19. Qc1 Nxd5 20. cxd5 (20. Bxd5 Bd4+ 21. Kg2 Be3 $16) 20... Bd7) 19. Qa3 $18 {[%emt 0:15:39] And now Nb6 would win.} Bg7 {[%emt 0:00:08]} 20. Nb6 {[%emt 0:00:43]} h5 {[%emt 0:23:35]} 21. h4 {[%emt 0:12:07][%cal Bh2h4,Bh4g5][%mdl 32]} Bd4+ {[%emt 0:12:24]} 22. Kh1 {[%emt 0:00:07][%cal Bg1h1,Bh1h2,Bh2g3,Bg3f2][%mdl 32]} Nf2+ $2 {[%emt 0:04:20] [#]} (22... Qf6 23. Ne4 (23. Qxa5 Bc3 $16) 23... Qe7) 23. Rxf2 $1 {[%emt 0:00:06][%mdl 512] White is clearly winning.} Bxf2 {[%emt 0:00:01] [#]} 24. Kh2 $1 {[%emt 0:01:25]} ({Less strong is} 24. Qxa5 Bxg3 25. Nf3 (25. Qxa6 {is a self mate.} Qxh4+) 25... Bg4 $16) 24... f5 {[%emt 0:03:16]} (24... Nxc4 $142 25. Nbxc4 Kg7) 25. Qxa5 {[%emt 0:01:33]} g5 {[%emt 0:00:01]} 26. hxg5 {[%emt 0:01:41]} h4 {[%emt 0:00:31]} 27. gxh4 {[%emt 0:00:51]} ({Weaker is} 27. Qxa6 hxg3+ 28. Kh1 Kg7 29. Qb7+ Kg6 $16) 27... Be3 {[%emt 0:00:01]} 28. Kg3 {[%emt 0:02:10]} Qe8 {[%emt 0:00:56]} 29. Qc3 {[%emt 0:01:08]} Bd4 {[%emt 0:00:05]} 30. Qd3 {[%emt 0:00:49]} Rf7 {[%emt 0:01:35]} 31. e3 {[%emt 0:00:46][%cal Be2e3,Be3d4][%mdl 32]} Rh7 {[%emt 0:00:28]} 32. exd4 {[%emt 0:01:36]} Qh5 {[%emt 0:00:10]} 33. Kf2 {[%emt 0:00:06] Black got outplayed after the opening.   Weighted Error Value: White=0.23 (precise) /Black=0.82} 1-0

[Event "71st Greek Championship 2022"]
[Site "Athens"]
[Date "2022.12.05"]
[Round "3.3"]
[White "Marinakis, Hristos"]
[Black "Moutousis, Konstantinos"]
[Result "1/2-1/2"]
[ECO "B41"]
[WhiteElo "2118"]
[BlackElo "2392"]
[Annotator "TA"]
[PlyCount "239"]
[EventDate "2022.12.04"]
[EventType "tourn"]
[EventCountry "GRE"]
[SourceTitle "playchess.com"]
[Source "ChessBase"]
[SourceQuality "1"]
[TimeControl "40/5400+30:1800+30"]

{[%evp 18,238,70,51,70,67,158,128,135,142,182,197,202,186,200,194,222,200,203,157,143,151,141,97,131,129,124,91,118,58,58,60,137,120,125,127,121,11,16,21,185,129,141,0,43,41,118,-127,239,-85,-85,-85,-88,-95,-95,-173,102,102,278,61,61,61,61,61,61,61,61,61,62,62,62,62,62,62,62,10,20,0,50,20,20,18,18,18,20,8,18,18,18,10,10,0,18,18,20,10,56,56,62,62,62,62,62,62,62,62,101,102,116,91,91,90,90,77,78,62,62,62,62,62,66,10,10,10,10,10,56,56,56,0,56,0,56,10,10,10,10,10,10,10,10,10,10,10,10,10,10,10,10,10,10,10,10,10,10,10,10,10,10,10,10,10,10,10,10,10,10,10,10,0,10,10,10,10,10,10,10,10,10,10,10,10,10,10,10,10,10,0,18,8,8,8,8,8,8,8,8,8,8,8,8,8,8,8,8,8,8,8,8,8,8,8,8,8,8,8,8,8,8,8,8,8,8]} 1. e4 {[%emt 0:00:03]} c5 {[%emt 0:00:58]} 2. Nf3 {[%emt 0:00:07]} e6 {[%emt 0:00:12]} 3. d4 {[%emt 0:00:07]} cxd4 {[%emt 0:00:03]} 4. Nxd4 {[%emt 0:00:06]} a6 {[%emt 0:00:42]} 5. c4 {[%emt 0:00:42]} d6 {[%emt 0:01:54]} 6. Nc3 {[%emt 0:00:44]} Nf6 {[%emt 0:00:32]} 7. Be2 {[%emt 0:02:56]} b6 {[%emt 0:04:38]} 8. O-O {[%emt 0:02:19]} Bb7 {[%emt 0:00:15]} 9. f3 {[%emt 0:00:29]} Nbd7 {[%emt 0:07:06]} 10. Be3 Rc8 {[%emt 0:20:37] B41: Sicilian: Kan Variation: 5 c4.} 11. a4 {[%emt 0:13:47][%cal Oa4a5] [#]} Rg8 $146 {[%emt 0:00:00]} ({Better is} 11... Be7 $14) ({Predecessor:} 11... Be7 12. a5 bxa5 13. Nb3 O-O 14. Nxa5 Ba8 15. Qd2 Qc7 16. Rfc1 Qb8 17. b4 d5 18. cxd5 exd5 19. Bxa6 Rxc3 20. Qxc3 Bd6 21. h3 dxe4 22. Nc6 Qe8 {½-½ (66) Hernandez Carmenates,H (2570)-Cordova,E (2566) Havana 2012}) 12. a5 {[%emt 0:06:05]} bxa5 {[%emt 0:00:00] White is better.} 13. Nb3 {[%emt 0:04:56]} g5 {[%emt 0:00:00]} 14. Nxa5 {[%emt 0:01:28]} (14. Rxa5 $6 Be7 $16) 14... Ba8 {[%emt 0:00:00]} 15. Qa4 {[%emt 0:06:54][%cal Oc4c5] Hoping for c5!} Be7 {[%emt 0:00:00]} 16. c5 $1 {[%emt 0:09:51]} Kf8 {[%emt 0:00:00]} 17. cxd6 (17. Bxa6 Nxc5 18. Bxc5 Rxc5 $11) 17... Bxd6 {[%emt 0:00:00]} 18. Rfd1 {[%emt 0:10:51]} Qc7 {[%emt 0:00:00] [#]} 19. Rxd6 {[%emt 0:01:13][%mdl 512]} Qxd6 {[%emt 0:00:00]} 20. Rd1 {[%emt 0:00:19][%mdl 64] Deflection} Qe7 {[%emt 0:00:00]} 21. Bxa6 {[%emt 0:01:09]} Rd8 {[%emt 0:07:22]} 22. b4 {[%emt 0:03:58][%mdl 1024] White has strong compensation.} h6 {[%emt 0:01:50]} 23. b5 {[%emt 0:09:20] White has more active pieces.} (23. Nc4 $16) 23... Kg7 {[%emt 0:00:48]} 24. b6 {[%emt 0:02:01]} Nc5 {[%emt 0:08:10] Inhibits b7.} (24... Nxb6 $1 $14 25. Bxb6 Rxd1+ 26. Nxd1 (26. Qxd1 Rb8 $16) 26... g4) 25. Qa3 $16 {[%emt 0:05:07]} Rxd1+ {[%emt 0:01:25]} 26. Nxd1 {[%emt 0:00:05]} Qd6 {[%emt 0:02:45]} 27. Bxc5 {[%emt 0:01:56]} ({White should try} 27. Qxc5 $16 Qxd1+ 28. Bf1) 27... Qxd1+ $11 {[%emt 0:00:13]} 28. Bf1 {[%emt 0:00:19] This pair of bishops is nice.} Qb1 {[%emt 0:03:17] Prevents Qb2.} (28... g4 $11 {and Black is okay.}) 29. Bd4 {[%emt 0:07:25]} (29. Nc4 $18) 29... e5 $16 {[%emt 0:05:23]} 30. Bb2 {[%emt 0:01:13]} (30. Bxe5 $6 Qxb6+ 31. Kh1 Qb1 $11) (30. Qb2 $16 Qxb2 31. Bxb2) 30... Rd8 {[%emt 0:00:20] ( -> ...Rd1)} 31. Nc4 $1 {[%emt 0:00:58]} (31. Bxe5 $2 Qxb6+ $19) (31. b7 $2 Rd1 32. Kf2 Rxf1+ $19) 31... Bc6 {[%emt 0:03:01]} (31... Bb7 $14) 32. Qb4 $2 {[%emt 0:04:35]} (32. Nxe5 $2 Rd1 33. Qa6 Qxb2 $19) (32. Bxe5 $16 {White threatens Qe7 and mate.} Rd1 33. Ne3 (33. Bxf6+ Kxf6 34. Qb2+ Qxb2 $17) 33... Qxb6 34. Qc3) 32... Bb7 $2 {[%emt 0:04:37][%mdl 8192]} (32... Rd1 $17 {[%csl Gb1][%cal Rd1f1] and life is bright.} 33. Ne3 Re1 34. Nf5+ Kh7) 33. Qa3 $2 {[%emt 0:02:58]} (33. Nxe5 $2 Rd1 34. Qc4 Rxf1+ 35. Qxf1 Qxb2 $19) (33. Qb5 $1 $18 {[%cal Rb5e5]} Rd1 34. Ne3 (34. Nxe5 $2 Ba6 $19)) 33... Rd1 $17 {[%emt 0:08:32][%csl Gb1][%cal Rd1f1]} 34. Ne3 {[%emt 0:00:16]} Re1 {[%emt 0:00:12][%cal Oe1e3]} 35. Bxe5 {[%emt 0:02:45][%cal Oa3d6] Threatening mate with Qd6!} ({But not} 35. Nf5+ $2 Kg6 36. Ne3 Rxe3 $1 {[%mdl 512]} 37. Qxe3 Qxb2 $19) 35... Qxb6 {[%emt 0:00:31]} 36. Kf2 {[%emt 0:00:11] [#]} (36. Bxf6+ $17 Qxf6 37. Kf2) 36... Rb1 $2 {[%emt 0:00:55]} (36... Rxf1+ $1 $19 {[%mdl 512]} 37. Kxf1 Qb5+ 38. Kg1 Qxe5 39. Nf5+ Kg6) 37. Qc3 $16 {[%emt 0:00:50] Threatens to win with Bd3. Really sharp!} Bxe4 {[%emt 0:05:48]} 38. Bxf6+ $2 {[%emt 0:00:41]} ({Weaker is} 38. fxe4 Kg6 39. Bxf6 Qxf6+ 40. Qxf6+ Kxf6 $16) ({White should play} 38. Bd4 $18 Rb3 39. Qc4 (39. fxe4 Rxc3 40. Bxb6 Nxe4+ 41. Kf3 Nd2+ 42. Ke2 Nb3 $16) (39. Bxf6+ Kg6 $16)) 38... Qxf6 $14 {[%emt 0:00:36]} 39. Qxf6+ {[%emt 0:00:05]} Kxf6 {[%emt 0:00:01]} 40. fxe4 {[%emt 0:00:00]} Ke5 {[%emt 0:00:00]} 41. Bd3 {[%emt 0:09:20]} Rb2+ {[%emt 0:05:05]} 42. Nc2 {[%emt 0:00:45]} h5 {[%emt 0:00:47]} 43. h3 {[%emt 0:04:53]} h4 {[%emt 0:15:14]} 44. Ke3 {[%emt 0:00:36]} f6 {[%emt 0:00:54]} 45. Ne1 $1 {[%emt 0:00:51]} Kd6 {[%emt 0:00:41]} 46. Kd4 {[%emt 0:03:38]} (46. Bc2 $14) 46... Rf2 {[%emt 0:01:54]} 47. Ke3 {[%emt 0:00:29]} Rb2 {[%emt 0:00:14]} 48. Be2 {[%emt 0:00:34]} Rb3+ {[%emt 0:01:53]} 49. Nd3 {[%emt 0:00:35]} Ra3 {[%emt 0:00:24]} 50. Kf3 {[%emt 0:05:45]} Ra2 {[%emt 0:01:23]} 51. Bd1 {[%emt 0:00:36]} Ra3 {[%emt 0:00:40]} 52. Ke3 {[%emt 0:01:44]} Ra2 {[%emt 0:00:30]} 53. Nf2 Ra3+ {[%emt 0:00:30]} 54. Nd3 {[%emt 0:01:00]} Ra2 {[%emt 0:00:21]} 55. Bf3 {[%emt 0:01:42]} Ra4 {[%emt 0:00:30]} 56. Nf2 Ke5 {[%emt 0:00:30]} (56... Ra3+ $11 57. Kd4 Ra4+ 58. Kc3 Ra3+ 59. Kb2 Ra6) 57. Be2 {[%emt 0:01:00]} Ra3+ {[%emt 0:00:30]} 58. Bd3 $1 {[%emt 0:00:30]} Ra4 {[%emt 0:00:30]} 59. Ng4+ {[%emt 0:00:30]} Ke6 {[%emt 0:00:30]} 60. Bc2 {[%emt 0:00:30]} Ra3+ {[%emt 0:00:30]} 61. Kd4 {[%emt 0:00:30]} Ra5 {[%emt 0:00:30]} 62. Bb3+ {[%emt 0:00:30]} Ke7 {[%emt 0:00:30]} 63. Ne3 {[%emt 0:00:30]} Kf8 {[%emt 0:00:30]} 64. Nf5 {[%emt 0:00:30]} Rb5 {[%emt 0:00:30]} 65. Bd5 {[%emt 0:00:30]} Rb2 {[%emt 0:00:30]} 66. Ne3 {[%emt 0:00:30]} (66. Ke3 $5 {[%cal Re3f3]}) 66... Rd2+ {[%emt 0:00:30]} 67. Kc3 {[%emt 0:00:30]} Re2 {[%emt 0:00:30]} 68. Kd3 {[%emt 0:00:30]} Rb2 {[%emt 0:00:30]} 69. e5 {[%emt 0:00:30]} (69. Nc2 $14) 69... fxe5 $11 {[%emt 0:00:30]} 70. Nc4 {[%emt 0:00:30][%csl LRb2,LRe5]} Rf2 {[%emt 0:00:30]} 71. Nxe5 {[%emt 0:00:30]} Kg7 {[%emt 0:00:30]} (71... Ke7 $11) 72. Bf3 $14 {[%emt 0:00:30]} Ra2 {[%emt 0:00:30]} 73. Bd5 {[%emt 0:06:03]} Rf2 74. Bf3 {[%emt 0:00:39]} (74. Ng4 $5 {[%cal Rg4f2]} Rf4 75. Be6 $16) 74... Ra2 $1 75. Be4 {[%emt 0:00:10]} (75. Ng4 $1 $14) 75... Kf6 $11 {The position is equal.} 76. Ng4+ {[%emt 0:00:27]} Ke6 77. Ke3 {[%emt 0:00:40]} Ra3+ {[%emt 0:00:15]} 78. Bd3 {[%emt 0:00:19]} Ra4 79. Nf2 {[%emt 0:01:25]} Ra3 {[%emt 0:00:45]} 80. Ne4 {[%emt 0:00:17]} Kf5 81. Nd2+ {[%emt 0:00:28]} Kf6 82. Nc4 {[%emt 0:00:54]} Ra2 {[%emt 0:00:18]} 83. Be4 {[%emt 0:00:00]} Ra4 84. Bd5 {[%emt 0:00:04]} Ra1 85. Kf3 {[%emt 0:01:05]} Rd1 {[%emt 0:00:16]} 86. Be4 {[%emt 0:00:00]} Rf1+ 87. Ke2 $1 {[%emt 0:00:25]} Rc1 {[%emt 0:00:35]} 88. Nb2 {[%emt 0:00:03]} Ra1 {White must now prevent ...Ra2.} 89. Nd3 {[%emt 0:00:43]} Ra4 {[%emt 0:00:24]} 90. Kf3 {[%emt 0:00:26]} Rd4 {[%emt 0:00:11]} 91. Nf2 {[%emt 0:00:45]} Ke5 {[%emt 0:27:17]} 92. Ng4+ {[%emt 0:00:45]} Ke6 {[%emt 0:00:06]} 93. Nf2 {[%emt 0:00:50]} Ke5 {[%emt 0:00:07]} 94. Ke3 {[%emt 0:00:17] Intending Ng4+ and mate.} Ra4 {[%emt 0:00:11]} 95. Nd3+ {[%emt 0:00:33]} Kf6 96. Bc6 {[%emt 0:00:41]} Rc4 {[%emt 0:00:21]} 97. Bf3 {[%emt 0:00:19]} Ra4 {[%emt 0:00:16]} 98. Bg4 {[%emt 0:00:27]} Rc4 {[%emt 0:00:26]} 99. Nf2 {[%emt 0:00:02]} Ke5 100. Be2 {[%emt 0:01:17]} Rc3+ {[%emt 0:01:30]} 101. Bd3 {[%emt 0:00:34] Ne4 is the strong threat.} Ra3 102. Ne4 {[%emt 0:00:11]} Kf5 {[%emt 0:00:23]} 103. g4+ {[%emt 0:00:00]} hxg3 {[%emt 0:00:19]} 104. Nxg3+ {[%emt 0:00:00]} Ke5 {[%emt 0:00:16]} 105. Ne4 {[%emt 0:00:00]} Kf5 {[%emt 0:00:12]} 106. Nf2+ {[%emt 0:01:11]} Ke5 {[%emt 0:00:13]} 107. Ng4+ {[%emt 0:00:08]} Ke6 {[%emt 0:00:17]} 108. Ke4 {[%emt 0:00:23]} Ra4+ {[%emt 0:00:11]} 109. Kf3 {[%emt 0:00:06]} Ra3 {[%emt 0:00:20]} 110. Nf2 {[%emt 0:01:23]} Ke5 {[%emt 0:04:28]} 111. Kg4 {[%emt 0:01:03]} Ra2 {[%emt 0:00:41]} 112. Nh1 {[%emt 0:01:11]} (112. Kg3 {simplifies} Rxf2 113. Kxf2 Kf6 114. Kg1) 112... Rg2+ {[%emt 0:01:19]} 113. Ng3 {[%emt 0:00:00]} Rxg3+ {[%emt 0:00:35][%mdl 64]} 114. Kxg3 {[%emt 0:00:00][%mdl 4096] Endgame KB-KP} Kf6 {[%emt 0:00:04]} 115. Kg4 {[%emt 0:00:00]} Kg7 {[%emt 0:00:04]} 116. Kf5 {[%emt 0:00:25]} Kh8 {[%emt 0:00:30]} 117. Kg6 {[%emt 0:00:30]} Kg8 {[%emt 0:00:30]} 118. Bc4+ {[%emt 0:00:30]} Kh8 {[%emt 0:00:30]} 119. Kh6 {[%emt 0:00:30]} g4 {[%emt 0:00:30]} 120. hxg4 {[%emt 0:00:30] Weighted Error Value: White=0.38/Black=0.39} 1/2-1/2